[Event "Early-Titled-Tuesday-Blitz-February-27-2024"]
[Site "Chess.com"]
[Date "2024.02.27"]
[Round "3"]
[White "Aslanov_Umid"]
[Black "Alex_Sahakyan2006"]
[Result "1-0"]
[WhiteElo "2679"]
[BlackElo "2841"]
[TimeControl "180+1"]
[EndTime "8:28:31 PST"]
[Termination "Aslanov_Umid won on time"]

1. e4 {[%clk 0:03:00.9]} 1... c6 {[%clk 0:02:57.1]} 2. d4 {[%clk 0:03:01.1]}
2... d5 {[%clk 0:02:57.5]} 3. Nd2 {[%clk 0:03:01.8]} 3... dxe4 {[%clk
0:02:57.1]} 4. Nxe4 {[%clk 0:03:02.7]} 4... Nf6 {[%clk 0:02:57.7]} 5. Nxf6+
{[%clk 0:03:03.1]} 5... exf6 {[%clk 0:02:58.1]} 6. c3 {[%clk 0:03:03.8]} 6...
Bd6 {[%clk 0:02:58.5]} 7. Bd3 {[%clk 0:03:04.6]} 7... O-O {[%clk 0:02:59.1]} 8.
Qc2 {[%clk 0:03:05.3]} 8... Re8+ {[%clk 0:02:59.7]} 9. Ne2 {[%clk 0:03:06]} 9...
h6 {[%clk 0:03:00.4]} 10. O-O {[%clk 0:03:03]} 10... Qc7 {[%clk 0:03:00.8]} 11.
h3 {[%clk 0:03:00.5]} 11... c5 {[%clk 0:03:01.3]} 12. dxc5 {[%clk 0:02:40.1]}
12... Bxc5 {[%clk 0:03:01.4]} 13. Bf4 {[%clk 0:02:35.4]} 13... Qb6 {[%clk
0:02:58.5]} 14. b4 {[%clk 0:02:27.5]} 14... Bf8 {[%clk 0:02:58.8]} 15. Nd4
{[%clk 0:02:23.2]} 15... Nc6 {[%clk 0:02:57.2]} 16. Nxc6 {[%clk 0:02:21.1]}
16... Qxc6 {[%clk 0:02:58.1]} 17. a4 {[%clk 0:02:17.7]} 17... a6 {[%clk
0:02:50.9]} 18. b5 {[%clk 0:02:13.1]} 18... Qc5 {[%clk 0:02:45.3]} 19. bxa6
{[%clk 0:02:08.1]} 19... bxa6 {[%clk 0:02:33.7]} 20. Be4 {[%clk 0:02:05]} 20...
Qc4 {[%clk 0:02:17.1]} 21. Bxa8 {[%clk 0:01:35.2]} 21... Qxf4 {[%clk 0:02:16.4]}
22. Bc6 {[%clk 0:01:35.4]} 22... Re6 {[%clk 0:02:06.9]} 23. Bd5 {[%clk 0:01:24]}
23... Re5 {[%clk 0:02:07]} 24. g3 {[%clk 0:01:04.6]} 24... Rg5 {[%clk
0:02:05.5]} 25. Bg2 {[%clk 0:01:01.6]} 25... Qc7 {[%clk 0:01:56.4]} 26. h4
{[%clk 0:00:59.2]} 26... Rg4 {[%clk 0:01:51.2]} 27. Rae1 {[%clk 0:00:51.7]}
27... Be6 {[%clk 0:01:40.8]} 28. Bh3 {[%clk 0:00:38.5]} 28... Rxg3+ {[%clk
0:01:41.2]} 29. fxg3 {[%clk 0:00:39]} 29... Bxh3 {[%clk 0:01:41.9]} 30. Rf3
{[%clk 0:00:36.2]} 30... Bg4 {[%clk 0:01:37.2]} 31. Rf4 {[%clk 0:00:32.6]} 31...
h5 {[%clk 0:01:37]} 32. Qd3 {[%clk 0:00:25.1]} 32... Qb6+ {[%clk 0:01:20.6]} 33.
Kg2 {[%clk 0:00:25.1]} 33... f5 {[%clk 0:01:09.2]} 34. Qd4 {[%clk 0:00:17.4]}
34... Qb7+ {[%clk 0:01:07.3]} 35. Kh2 {[%clk 0:00:17.9]} 35... Qc6 {[%clk
0:00:54.3]} 36. Qc4 {[%clk 0:00:15.2]} 36... Qb6 {[%clk 0:00:46.4]} 37. Re8
{[%clk 0:00:15.5]} 37... Qb2+ {[%clk 0:00:46]} 38. Kg1 {[%clk 0:00:16.2]} 38...
Qb1+ {[%clk 0:00:35.2]} 39. Rf1 {[%clk 0:00:16.8]} 39... Qb6+ {[%clk 0:00:30.4]}
40. Qd4 {[%clk 0:00:16.1]} 40... Qc7 {[%clk 0:00:29.2]} 41. Kh2 {[%clk
0:00:13.3]} 41... Qc6 {[%clk 0:00:14.2]} 42. Rfe1 {[%clk 0:00:09.9]} 42... f6
{[%clk 0:00:05.6]} 43. Qd8 {[%clk 0:00:04.9]} 43... Qc5 {[%clk 0:00:02.6]} 44.
Rxf8+ {[%clk 0:00:04.3]} 1-0

[Event "Early-Titled-Tuesday-Blitz-February-27-2024"]
[Site "Chess.com"]
[Date "2024.02.27"]
[Round "3"]
[White "Mikasinski"]
[Black "Slovineanu"]
[Result "1-0"]
[WhiteElo "2652"]
[BlackElo "2460"]
[TimeControl "180+1"]
[EndTime "8:28:31 PST"]
[Termination "Mikasinski won on time"]

1. e4 {[%clk 0:02:56.5]} 1... e6 {[%clk 0:02:59.7]} 2. d4 {[%clk 0:02:56.6]}
2... d5 {[%clk 0:02:59.9]} 3. Nc3 {[%clk 0:02:57.3]} 3... Nf6 {[%clk 0:02:58.9]}
4. Bg5 {[%clk 0:02:58]} 4... dxe4 {[%clk 0:02:58.5]} 5. Nxe4 {[%clk 0:02:58.2]}
5... Be7 {[%clk 0:02:58.9]} 6. Bxf6 {[%clk 0:02:58.4]} 6... gxf6 {[%clk
0:02:59.3]} 7. Nf3 {[%clk 0:02:59]} 7... f5 {[%clk 0:02:58.8]} 8. Nc3 {[%clk
0:02:59.6]} 8... a6 {[%clk 0:02:58.9]} 9. g3 {[%clk 0:03:00.2]} 9... b5 {[%clk
0:02:58.8]} 10. Bg2 {[%clk 0:03:00.9]} 10... Bb7 {[%clk 0:02:59.1]} 11. O-O
{[%clk 0:03:01.4]} 11... Bf6 {[%clk 0:02:42.6]} 12. Re1 {[%clk 0:02:54.5]} 12...
O-O {[%clk 0:02:40.9]} 13. Ne5 {[%clk 0:02:45.9]} 13... Bxg2 {[%clk 0:02:39.6]}
14. Kxg2 {[%clk 0:02:46.8]} 14... b4 {[%clk 0:02:37.2]} 15. Qf3 {[%clk
0:02:47.2]} 15... c6 {[%clk 0:02:36.1]} 16. Ne2 {[%clk 0:02:36.9]} 16... Qd5
{[%clk 0:02:31.4]} 17. c4 {[%clk 0:02:35.1]} 17... bxc3 {[%clk 0:02:16.1]} 18.
Nxc3 {[%clk 0:02:30.1]} 18... Qxd4 {[%clk 0:01:49.8]} 19. Rad1 {[%clk
0:02:23.1]} 19... Qb4 {[%clk 0:01:49.6]} 20. Rd2 {[%clk 0:02:08.6]} 20... Ra7
{[%clk 0:01:39.4]} 21. Nd3 {[%clk 0:02:05.1]} 21... Qg4 {[%clk 0:01:22.5]} 22.
Qxg4+ {[%clk 0:01:50.4]} 22... fxg4 {[%clk 0:01:22.5]} 23. Ne4 {[%clk
0:01:50.6]} 23... Bg7 {[%clk 0:01:11.7]} 24. Ndc5 {[%clk 0:01:45.6]} 24... Re8
{[%clk 0:00:59.5]} 25. Red1 {[%clk 0:01:43.3]} 25... a5 {[%clk 0:00:47.7]} 26.
Nd6 {[%clk 0:01:40.2]} 26... Rf8 {[%clk 0:00:39.7]} 27. Nc4 {[%clk 0:01:35.2]}
27... Na6 {[%clk 0:00:36.4]} 28. Nd7 {[%clk 0:01:32.8]} 28... Rfa8 {[%clk
0:00:19.8]} 29. Nxa5 {[%clk 0:01:28.4]} 29... Nb4 {[%clk 0:00:20]} 30. a3 {[%clk
0:01:17.1]} 30... Rxa5 {[%clk 0:00:17.3]} 31. axb4 {[%clk 0:01:17.8]} 31... Rd5
{[%clk 0:00:17.4]} 32. Nb6 {[%clk 0:01:16.4]} 32... Rxd2 {[%clk 0:00:16.6]} 33.
Rxd2 {[%clk 0:01:17.1]} 33... Rb8 {[%clk 0:00:16.9]} 34. Nd7 {[%clk 0:01:04.6]}
34... Rxb4 {[%clk 0:00:16.7]} 35. Rc2 {[%clk 0:01:04.1]} 35... Rxb2 {[%clk
0:00:16.1]} 36. Rc4 {[%clk 0:01:02.7]} 36... h5 {[%clk 0:00:15.5]} 37. Kf1
{[%clk 0:00:56.8]} 37... f5 {[%clk 0:00:14.9]} 38. Rxc6 {[%clk 0:00:55.7]} 38...
Bd4 {[%clk 0:00:14.4]} 39. Rxe6 {[%clk 0:00:54.9]} 39... Rxf2+ {[%clk
0:00:14.2]} 40. Ke1 {[%clk 0:00:55.5]} 40... Rxh2 {[%clk 0:00:14.1]} 41. Rd6
{[%clk 0:00:55.4]} 41... Bf2+ {[%clk 0:00:13.7]} 42. Kf1 {[%clk 0:00:55.7]}
42... Bxg3 {[%clk 0:00:13.9]} 43. Rh6 {[%clk 0:00:55.2]} 43... Kg7 {[%clk
0:00:12.3]} 44. Rc6 {[%clk 0:00:53.9]} 44... Rf2+ {[%clk 0:00:11.8]} 45. Kg1
{[%clk 0:00:53.5]} 45... Rd2 {[%clk 0:00:11.9]} 46. Nf6 {[%clk 0:00:51]} 46...
h4 {[%clk 0:00:11]} 47. Nh5+ {[%clk 0:00:50.3]} 47... Kh7 {[%clk 0:00:09.9]} 48.
Nf6+ {[%clk 0:00:50]} 48... Kg7 {[%clk 0:00:08.5]} 49. Nh5+ {[%clk 0:00:50.3]}
49... Kh8 {[%clk 0:00:08.2]} 50. Rh6+ {[%clk 0:00:48.7]} 50... Kg8 {[%clk
0:00:07.4]} 51. Rf6 {[%clk 0:00:44.6]} 51... Bh2+ {[%clk 0:00:04.6]} 52. Kh1
{[%clk 0:00:42.1]} 52... g3 {[%clk 0:00:04.3]} 53. Nf4 {[%clk 0:00:39.3]} 53...
Rd1+ {[%clk 0:00:03.2]} 54. Kg2 {[%clk 0:00:38.7]} 54... Rg1+ {[%clk 0:00:03.6]}
55. Kh3 {[%clk 0:00:39.2]} 55... Rf1 {[%clk 0:00:04.2]} 56. Rxf5 {[%clk
0:00:34.8]} 56... Kg7 {[%clk 0:00:04.1]} 57. Ne6+ {[%clk 0:00:31.5]} 57... Kg6
{[%clk 0:00:01.6]} 58. Rxf1 {[%clk 0:00:32.4]} 1-0

[Event "Early-Titled-Tuesday-Blitz-February-27-2024"]
[Site "Chess.com"]
[Date "2024.02.27"]
[Round "3"]
[White "ScofieldMichael01"]
[Black "Bkmzzzzz"]
[Result "1-0"]
[WhiteElo "2609"]
[BlackElo "2380"]
[TimeControl "180+1"]
[EndTime "8:28:34 PST"]
[Termination "ScofieldMichael01 won by checkmate"]

1. Nf3 {[%clk 0:03:00.9]} 1... d6 {[%clk 0:02:59.8]} 2. d4 {[%clk 0:03:00.7]}
2... Nd7 {[%clk 0:02:59.5]} 3. g3 {[%clk 0:02:58.8]} 3... e5 {[%clk 0:02:58.6]}
4. dxe5 {[%clk 0:02:59.1]} 4... dxe5 {[%clk 0:02:59.5]} 5. Bg2 {[%clk
0:02:59.1]} 5... Ngf6 {[%clk 0:02:58.7]} 6. O-O {[%clk 0:02:59.1]} 6... Be7
{[%clk 0:02:58.5]} 7. b3 {[%clk 0:02:59]} 7... O-O {[%clk 0:02:59]} 8. Bb2
{[%clk 0:02:59.2]} 8... Bd6 {[%clk 0:02:49.9]} 9. Nbd2 {[%clk 0:02:55.3]} 9...
Qe7 {[%clk 0:02:38.6]} 10. e4 {[%clk 0:02:51.2]} 10... b5 {[%clk 0:02:31.8]} 11.
Qe2 {[%clk 0:02:49.2]} 11... a6 {[%clk 0:02:21.3]} 12. Nh4 {[%clk 0:02:48.9]}
12... Nc5 {[%clk 0:02:16.3]} 13. Nf5 {[%clk 0:02:44.7]} 13... Bxf5 {[%clk
0:02:15.5]} 14. exf5 {[%clk 0:02:45.6]} 14... Rab8 {[%clk 0:02:10.5]} 15. Rfe1
{[%clk 0:02:41.9]} 15... Rfe8 {[%clk 0:02:06.8]} 16. Rad1 {[%clk 0:02:41.6]}
16... Qd7 {[%clk 0:01:57.6]} 17. g4 {[%clk 0:02:33.6]} 17... h6 {[%clk
0:01:55.7]} 18. h4 {[%clk 0:02:25.9]} 18... Nh7 {[%clk 0:01:38.9]} 19. Qe3
{[%clk 0:01:31.3]} 19... Qe7 {[%clk 0:01:28.7]} 20. Qh3 {[%clk 0:01:28.7]} 20...
a5 {[%clk 0:01:09.6]} 21. f4 {[%clk 0:01:24.4]} 21... Nd7 {[%clk 0:01:01.5]} 22.
Ne4 {[%clk 0:01:19.4]} 22... Ba3 {[%clk 0:00:48.3]} 23. Bxa3 {[%clk 0:01:17]}
23... Qxa3 {[%clk 0:00:46.6]} 24. Rxd7 {[%clk 0:01:17.6]} 24... exf4 {[%clk
0:00:46.4]} 25. g5 {[%clk 0:01:14.3]} 25... Qxa2 {[%clk 0:00:33.3]} 26. gxh6
{[%clk 0:01:08.6]} 26... Qxc2 {[%clk 0:00:33.2]} 27. Qg4 {[%clk 0:01:04.7]}
27... Qb2 {[%clk 0:00:25.6]} 28. f6 {[%clk 0:00:50.7]} 28... g6 {[%clk
0:00:24.9]} 29. h5 {[%clk 0:00:50.8]} 29... Nxf6 {[%clk 0:00:19.8]} 30. Nxf6+
{[%clk 0:00:45.4]} 30... Qxf6 {[%clk 0:00:20.7]} 31. Rxe8+ {[%clk 0:00:42.7]}
31... Rxe8 {[%clk 0:00:21.6]} 32. hxg6 {[%clk 0:00:42.6]} 32... fxg6 {[%clk
0:00:18.5]} 33. Rg7+ {[%clk 0:00:37.7]} 33... Kh8 {[%clk 0:00:18.5]} 34. Rxg6
{[%clk 0:00:25.4]} 34... Qd4+ {[%clk 0:00:17.5]} 35. Kh2 {[%clk 0:00:25.5]}
35... Qe5 {[%clk 0:00:17.5]} 36. Bf3 {[%clk 0:00:21.6]} 36... Qb2+ {[%clk
0:00:16.6]} 37. Kh3 {[%clk 0:00:21.5]} 37... Qa1 {[%clk 0:00:14.3]} 38. Qxf4
{[%clk 0:00:18.7]} 38... Qf1+ {[%clk 0:00:13.9]} 39. Kg4 {[%clk 0:00:08.1]}
39... Qg1+ {[%clk 0:00:14]} 40. Qg3 {[%clk 0:00:07.7]} 40... Qd4+ {[%clk
0:00:11]} 41. Kh3 {[%clk 0:00:07.3]} 41... Qd7+ {[%clk 0:00:10.7]} 42. Bg4
{[%clk 0:00:06.8]} 42... Qd2 {[%clk 0:00:09.2]} 43. Bf5 {[%clk 0:00:04.8]} 43...
Qb2 {[%clk 0:00:04.9]} 44. h7 {[%clk 0:00:04.9]} 44... Kxh7 {[%clk 0:00:02]} 45.
Rg8+ {[%clk 0:00:05.4]} 45... Kh6 {[%clk 0:00:02.2]} 46. Qg6# {[%clk 0:00:05.8]}
1-0

[Event "Early-Titled-Tuesday-Blitz-February-27-2024"]
[Site "Chess.com"]
[Date "2024.02.27"]
[Round "3"]
[White "DumbKing75"]
[Black "ArchibaldCerveza29"]
[Result "1-0"]
[WhiteElo "2647"]
[BlackElo "2456"]
[TimeControl "180+1"]
[EndTime "8:28:35 PST"]
[Termination "DumbKing75 won by resignation"]

1. d4 {[%clk 0:03:00.9]} 1... d5 {[%clk 0:02:56.1]} 2. Bf4 {[%clk 0:02:57.4]}
2... c5 {[%clk 0:02:54.4]} 3. e3 {[%clk 0:02:52.3]} 3... Nc6 {[%clk 0:02:54.4]}
4. c3 {[%clk 0:02:46.8]} 4... Nf6 {[%clk 0:02:53.8]} 5. Nd2 {[%clk 0:02:43.8]}
5... g6 {[%clk 0:02:51.8]} 6. Ngf3 {[%clk 0:02:40.3]} 6... Qb6 {[%clk
0:02:50.8]} 7. Qb3 {[%clk 0:02:38.2]} 7... c4 {[%clk 0:02:50.7]} 8. Qc2 {[%clk
0:02:38.4]} 8... Bf5 {[%clk 0:02:49.9]} 9. Qc1 {[%clk 0:02:38.9]} 9... Bg7
{[%clk 0:02:48.6]} 10. Be2 {[%clk 0:02:30.4]} 10... O-O {[%clk 0:02:47.8]} 11.
O-O {[%clk 0:02:29.7]} 11... Rfe8 {[%clk 0:02:46.7]} 12. h3 {[%clk 0:02:27.8]}
12... h5 {[%clk 0:02:46.5]} 13. b3 {[%clk 0:02:17.4]} 13... cxb3 {[%clk
0:02:38.9]} 14. axb3 {[%clk 0:02:18.3]} 14... Rac8 {[%clk 0:02:39.3]} 15. Qa3
{[%clk 0:02:11.5]} 15... a6 {[%clk 0:02:38.8]} 16. Rfc1 {[%clk 0:02:08.7]} 16...
Nd7 {[%clk 0:02:15]} 17. Nh4 {[%clk 0:01:40]} 17... e5 {[%clk 0:02:07.5]} 18.
Nxf5 {[%clk 0:01:37]} 18... exf4 {[%clk 0:02:06.7]} 19. Nd6 {[%clk 0:01:36.2]}
19... fxe3 {[%clk 0:02:02]} 20. fxe3 {[%clk 0:01:37.1]} 20... Bh6 {[%clk
0:01:57]} 21. Nf1 {[%clk 0:01:31]} 21... Nf6 {[%clk 0:01:31.8]} 22. Nxc8 {[%clk
0:01:21.6]} 22... Rxc8 {[%clk 0:01:32.7]} 23. Bf3 {[%clk 0:01:17.8]} 23... Re8
{[%clk 0:01:27.3]} 24. Re1 {[%clk 0:01:17.1]} 24... Qc7 {[%clk 0:01:24.9]} 25.
c4 {[%clk 0:01:10.8]} 25... Ne7 {[%clk 0:01:05.6]} 26. Rac1 {[%clk 0:00:47]}
26... Nf5 {[%clk 0:00:59]} 27. cxd5 {[%clk 0:00:45.3]} 27... Qd7 {[%clk
0:00:51]} 28. b4 {[%clk 0:00:37.9]} 28... Nxd5 {[%clk 0:00:37.4]} 29. e4 {[%clk
0:00:24.3]} 29... Bxc1 {[%clk 0:00:17.8]} 30. Rxc1 {[%clk 0:00:25.2]} 30... Nxd4
{[%clk 0:00:13.2]} 31. exd5 {[%clk 0:00:25.5]} 31... Qf5 {[%clk 0:00:07.6]} 32.
Qc3 {[%clk 0:00:11.5]} 32... Qf4 {[%clk 0:00:07.2]} 33. Rd1 {[%clk 0:00:10.5]}
33... Nf5 {[%clk 0:00:06]} 34. Qd2 {[%clk 0:00:08.9]} 34... Qc4 {[%clk 0:00:06]}
35. d6 {[%clk 0:00:09.1]} 35... Rd8 {[%clk 0:00:05.7]} 36. d7 {[%clk 0:00:08.9]}
36... Qc7 {[%clk 0:00:04.3]} 37. Ne3 {[%clk 0:00:08]} 37... Nh4 {[%clk
0:00:04.6]} 38. Be4 {[%clk 0:00:06.2]} 38... Qf4 {[%clk 0:00:03.7]} 39. Qd3
{[%clk 0:00:05.2]} 39... Qg3 {[%clk 0:00:03.6]} 40. Nf1 {[%clk 0:00:04.9]} 40...
Qg5 {[%clk 0:00:03.7]} 41. Bxb7 {[%clk 0:00:04.4]} 41... Nf5 {[%clk 0:00:02.6]}
42. Qf3 {[%clk 0:00:04.2]} 42... Nd6 {[%clk 0:00:02.3]} 43. Rxd6 {[%clk
0:00:03.6]} 1-0

[Event "Early-Titled-Tuesday-Blitz-February-27-2024"]
[Site "Chess.com"]
[Date "2024.02.27"]
[Round "3"]
[White "kingofthenil"]
[Black "DenLaz"]
[Result "0-1"]
[WhiteElo "2737"]
[BlackElo "3034"]
[TimeControl "180+1"]
[EndTime "8:28:36 PST"]
[Termination "DenLaz won by resignation"]

1. e4 {[%clk 0:03:00.4]} 1... c5 {[%clk 0:02:59.8]} 2. d3 {[%clk 0:02:59.8]}
2... Nc6 {[%clk 0:02:59.5]} 3. g3 {[%clk 0:03:00.7]} 3... g6 {[%clk 0:02:59.7]}
4. Bg2 {[%clk 0:03:01.4]} 4... Bg7 {[%clk 0:03:00.3]} 5. f4 {[%clk 0:03:02.3]}
5... d6 {[%clk 0:02:59.4]} 6. Nf3 {[%clk 0:03:03.2]} 6... Nf6 {[%clk 0:02:59.8]}
7. O-O {[%clk 0:03:04.1]} 7... O-O {[%clk 0:02:59.9]} 8. Nc3 {[%clk 0:03:05]}
8... Rb8 {[%clk 0:02:59.4]} 9. h3 {[%clk 0:03:05.9]} 9... b5 {[%clk 0:02:59.1]}
10. g4 {[%clk 0:03:06]} 10... b4 {[%clk 0:02:58.4]} 11. Ne2 {[%clk 0:03:06.7]}
11... a5 {[%clk 0:02:57.4]} 12. Rb1 {[%clk 0:02:59.7]} 12... a4 {[%clk
0:02:46.5]} 13. b3 {[%clk 0:02:54.6]} 13... Bb7 {[%clk 0:02:39.7]} 14. Qe1
{[%clk 0:02:51.3]} 14... e6 {[%clk 0:02:31.8]} 15. f5 {[%clk 0:02:49.9]} 15...
exf5 {[%clk 0:02:32]} 16. gxf5 {[%clk 0:02:50.8]} 16... Nd7 {[%clk 0:02:22]} 17.
Bg5 {[%clk 0:02:45.1]} 17... Bf6 {[%clk 0:02:14]} 18. Qh4 {[%clk 0:02:44]} 18...
Nce5 {[%clk 0:02:08.4]} 19. Bxf6 {[%clk 0:02:35.1]} 19... Nxf3+ {[%clk
0:02:04.4]} 20. Rxf3 {[%clk 0:02:36]} 20... Qxf6 {[%clk 0:02:04.8]} 21. Qf4
{[%clk 0:02:13.1]} 21... Ne5 {[%clk 0:02:01.7]} 22. Rg3 {[%clk 0:02:13.3]} 22...
Kh8 {[%clk 0:01:56.8]} 23. Rf1 {[%clk 0:02:13]} 23... axb3 {[%clk 0:01:51.9]}
24. axb3 {[%clk 0:02:13.9]} 24... gxf5 {[%clk 0:01:20.3]} 25. Rg5 {[%clk
0:01:58.4]} 25... Rg8 {[%clk 0:01:13.6]} 26. Rxf5 {[%clk 0:01:57.7]} 26... Qg7
{[%clk 0:01:12.1]} 27. Rf2 {[%clk 0:01:57.8]} 27... Bc8 {[%clk 0:01:12]} 28. Rh5
{[%clk 0:01:55.5]} 28... Ra8 {[%clk 0:00:53.2]} 29. Kh2 {[%clk 0:01:55.9]} 29...
Ra2 {[%clk 0:00:48]} 30. Ng3 {[%clk 0:01:56.2]} 30... Be6 {[%clk 0:00:43.1]} 31.
Qh4 {[%clk 0:01:03.2]} 31... Nxd3 {[%clk 0:00:35.3]} 32. Rf6 {[%clk 0:01:03.3]}
32... Qxg3+ {[%clk 0:00:21.9]} 33. Qxg3 {[%clk 0:01:03.1]} 33... Rxg3 {[%clk
0:00:22.8]} 34. Kxg3 {[%clk 0:01:02.9]} 34... Rxc2 {[%clk 0:00:23.2]} 35. Rfh6
{[%clk 0:01:02.2]} 35... Rxg2+ {[%clk 0:00:22.4]} 36. Kxg2 {[%clk 0:00:59.2]}
36... Nf4+ {[%clk 0:00:22.8]} 37. Kf2 {[%clk 0:00:28.7]} 37... Nxh5 {[%clk
0:00:23.7]} 38. Rxh5 {[%clk 0:00:29.5]} 38... Bxb3 {[%clk 0:00:24]} 39. Rg5
{[%clk 0:00:30.1]} 39... Bc2 {[%clk 0:00:19.7]} 40. Ke3 {[%clk 0:00:21.7]} 40...
b3 {[%clk 0:00:20.2]} 41. Kd2 {[%clk 0:00:22.3]} 41... Bxe4 {[%clk 0:00:19.9]}
42. Kc3 {[%clk 0:00:22.6]} 42... c4 {[%clk 0:00:19.2]} 43. Rb5 {[%clk
0:00:05.7]} 43... d5 {[%clk 0:00:19.4]} 44. Kd4 {[%clk 0:00:06.3]} 44... Kg7
{[%clk 0:00:19.6]} 45. Rb6 {[%clk 0:00:06.2]} 45... f6 {[%clk 0:00:19.8]} 46. h4
{[%clk 0:00:06.6]} 46... Kg6 {[%clk 0:00:20.3]} 47. Ke3 {[%clk 0:00:05.9]} 47...
Kf5 {[%clk 0:00:18.8]} 48. Kd4 {[%clk 0:00:05.9]} 48... h5 {[%clk 0:00:18.4]}
49. Kc3 {[%clk 0:00:05.9]} 49... Ke5 {[%clk 0:00:18.5]} 50. Rb5 {[%clk
0:00:06.5]} 50... f5 {[%clk 0:00:18.8]} 51. Rb8 {[%clk 0:00:05.4]} 51... f4
{[%clk 0:00:19]} 52. Re8+ {[%clk 0:00:05.8]} 52... Kf5 {[%clk 0:00:19.5]} 53.
Rf8+ {[%clk 0:00:06.3]} 53... Kg4 {[%clk 0:00:20]} 54. Rb8 {[%clk 0:00:05.4]}
54... f3 {[%clk 0:00:20]} 55. Kd4 {[%clk 0:00:06.3]} 55... f2 {[%clk 0:00:20]}
56. Rf8 {[%clk 0:00:07]} 56... Kg3 {[%clk 0:00:20.1]} 57. Rxf2 {[%clk
0:00:07.9]} 57... Kxf2 {[%clk 0:00:20.2]} 0-1

[Event "Early-Titled-Tuesday-Blitz-February-27-2024"]
[Site "Chess.com"]
[Date "2024.02.27"]
[Round "3"]
[White "Sammed_Shete"]
[Black "phantom19801127"]
[Result "0-1"]
[WhiteElo "2782"]
[BlackElo "2541"]
[TimeControl "180+1"]
[EndTime "8:28:38 PST"]
[Termination "phantom19801127 won by checkmate"]

1. e4 {[%clk 0:02:50.6]} 1... c5 {[%clk 0:02:59]} 2. Nf3 {[%clk 0:02:47]} 2...
d6 {[%clk 0:02:58.4]} 3. d4 {[%clk 0:02:46.1]} 3... cxd4 {[%clk 0:02:58.7]} 4.
Nxd4 {[%clk 0:02:47]} 4... Nf6 {[%clk 0:02:59]} 5. Nc3 {[%clk 0:02:47.4]} 5...
a6 {[%clk 0:02:59.4]} 6. Bd3 {[%clk 0:02:45.2]} 6... e5 {[%clk 0:02:57.7]} 7.
Nde2 {[%clk 0:02:43.1]} 7... Be6 {[%clk 0:02:52.9]} 8. O-O {[%clk 0:02:32.7]}
8... Nbd7 {[%clk 0:02:50.5]} 9. f4 {[%clk 0:02:32.2]} 9... Qc7 {[%clk
0:02:50.5]} 10. Kh1 {[%clk 0:02:27.4]} 10... Be7 {[%clk 0:02:48.5]} 11. b3
{[%clk 0:02:23.6]} 11... Nc5 {[%clk 0:02:47.7]} 12. f5 {[%clk 0:02:14.3]} 12...
Bd7 {[%clk 0:02:47.2]} 13. Bg5 {[%clk 0:02:10.9]} 13... Bc6 {[%clk 0:02:45.5]}
14. Ng3 {[%clk 0:02:09.1]} 14... b5 {[%clk 0:02:33.1]} 15. Bxf6 {[%clk
0:02:00.6]} 15... Bxf6 {[%clk 0:02:32.5]} 16. Nh5 {[%clk 0:02:01.3]} 16... b4
{[%clk 0:02:32]} 17. Nd5 {[%clk 0:01:30.9]} 17... Bxd5 {[%clk 0:02:31.8]} 18.
exd5 {[%clk 0:01:31.8]} 18... Qe7 {[%clk 0:02:29.5]} 19. a3 {[%clk 0:01:22.8]}
19... bxa3 {[%clk 0:02:14.5]} 20. Rxa3 {[%clk 0:01:21]} 20... O-O {[%clk
0:02:14.5]} 21. Be2 {[%clk 0:01:15.9]} 21... a5 {[%clk 0:02:07]} 22. Qd2 {[%clk
0:01:11.8]} 22... Bg5 {[%clk 0:01:57.4]} 23. Qc3 {[%clk 0:01:10.9]} 23... Ne4
{[%clk 0:01:55.5]} 24. Qd3 {[%clk 0:01:08.1]} 24... Nd2 {[%clk 0:01:46.6]} 25.
f6 {[%clk 0:01:03.9]} 25... gxf6 {[%clk 0:01:43.4]} 26. Rd1 {[%clk 0:00:45.9]}
26... e4 {[%clk 0:01:43.1]} 27. Qh3 {[%clk 0:00:32.2]} 27... e3 {[%clk
0:01:34.8]} 28. Ra4 {[%clk 0:00:28]} 28... Qe5 {[%clk 0:01:30.3]} 29. Bd3 {[%clk
0:00:22.1]} 29... Kh8 {[%clk 0:01:28.9]} 30. Nxf6 {[%clk 0:00:20.7]} 30... h6
{[%clk 0:01:21.1]} 31. Ng4 {[%clk 0:00:20.8]} 31... Qg7 {[%clk 0:01:07.5]} 32.
Nxe3 {[%clk 0:00:17.3]} 32... Rae8 {[%clk 0:00:57]} 33. Nf5 {[%clk 0:00:16.8]}
33... Qf6 {[%clk 0:00:56.7]} 34. Rg4 {[%clk 0:00:17]} 34... Re5 {[%clk
0:00:49.2]} 35. Ng3 {[%clk 0:00:16.1]} 35... Rfe8 {[%clk 0:00:47.1]} 36. Rg1
{[%clk 0:00:15.4]} 36... Re1 {[%clk 0:00:45.3]} 37. Ne2 {[%clk 0:00:15.4]} 37...
R8xe2 {[%clk 0:00:43.1]} 38. Bxe2 {[%clk 0:00:15.7]} 38... Rxe2 {[%clk
0:00:43.5]} 39. Qd3 {[%clk 0:00:16]} 39... Qf2 {[%clk 0:00:42]} 40. Qc3+ {[%clk
0:00:14.7]} 40... Kh7 {[%clk 0:00:40.5]} 41. h4 {[%clk 0:00:10.7]} 41... Ne4
{[%clk 0:00:33]} 42. Qh3 {[%clk 0:00:08.1]} 42... Bf4 {[%clk 0:00:30.6]} 43. Qf3
{[%clk 0:00:07.5]} 43... Qxg1+ {[%clk 0:00:27.7]} 44. Kxg1 {[%clk 0:00:07.4]}
44... Re1+ {[%clk 0:00:27.9]} 45. Qf1 {[%clk 0:00:07.5]} 45... Be3+ {[%clk
0:00:27.4]} 46. Kh2 {[%clk 0:00:08.4]} 46... Rxf1 {[%clk 0:00:27]} 47. Rxe4
{[%clk 0:00:09.3]} 47... Bf4+ {[%clk 0:00:27.2]} 48. Kh3 {[%clk 0:00:08.8]}
48... f5 {[%clk 0:00:23.6]} 49. Ra4 {[%clk 0:00:08.5]} 49... Rh1# {[%clk
0:00:22.9]} 0-1